fUSD/lending_fUSD_20240828
["ID","MTS","AMOUNT","RATE_DAILY","PERIOD"]
[336511756,1724886309031,-1634.2,0.00038904,120]
[336511757,1724886309107,-896.96,0.00038904,120]
[336511758,1724886309182,-500.0,0.00038904,120]
[336511759,1724886309257,-500.0,0.00038904,120]
[336511760,1724886309330,-500.0,0.00038904,120]
[336511761,1724886309407,-1000.0,0.00038904,120]
[336511762,1724886309483,-500.0,0.00038904,120]
[336511763,1724886309559,-500.0,0.00038904,120]
[336511764,1724886309635,-500.0,0.00038904,120]
[336511765,1724886309709,-500.0,0.00038904,120]
[336511766,1724886309779,-500.0,0.00038904,120]
[336511767,1724886309853,-1182.11,0.00038904,120]
[336511768,1724886309924,-500.0,0.00038904,120]
[336511769,1724886309994,-500.0,0.00038904,120]
[336511770,1724886310065,-500.0,0.00038904,120]
[336511771,1724886310143,-1294.95,0.00038904,120]
[336511772,1724886310215,-500.0,0.00038904,120]
[336511773,1724886310287,-500.0,0.00038904,120]
[336511774,1724886310359,-500.0,0.00038904,120]
[336511775,1724886310436,-500.0,0.00038904,120]
[336511776,1724886310513,-500.0,0.00038904,120]
[336511777,1724886310584,-500.0,0.00038904,120]
[336511778,1724886310656,-500.0,0.00038904,120]
[336511779,1724886310728,-500.0,0.00038904,120]
[336511780,1724886310801,-500.0,0.00038904,120]
[336511781,1724886310872,-500.0,0.00038904,120]
[336511782,1724886310942,-843.11,0.00038904,120]
[336511783,1724886311015,-500.0,0.00038904,120]
[336511784,1724886311088,-501.92884055,0.00038904,120]
[336511785,1724886311167,-500.0,0.00038904,120]
[336511786,1724886311243,-500.0,0.00038904,120]
[336511787,1724886311322,-579.28,0.00038904,120]
[336511788,1724886311405,-500.0,0.00038904,120]
[336511789,1724886311479,-500.0,0.00038904,120]
[336511790,1724886311549,-352.97645215,0.00038904,120]
[336511791,1724886311623,-725.36,0.00038904,120]
[336511792,1724886311695,-500.0,0.00038904,120]
[336511793,1724886311768,-510.45,0.00038904,120]
[336511794,1724886311841,-500.0,0.00038904,120]
[336511795,1724886311918,-500.0,0.00038904,120]
[336511796,1724886312003,-500.0,0.00038904,120]
[336511797,1724886312082,-576.92,0.00038904,120]
[336511798,1724886312163,-500.0,0.00038904,120]
[336511799,1724886312244,-500.0,0.00038904,120]
[336511800,1724886312326,-500.0,0.00038904,120]
[336511801,1724886312405,-500.0,0.00038904,120]
[336511802,1724886312483,-500.0,0.00038904,120]
[336511803,1724886312560,-484.18,0.00038904,120]
[336511804,1724886312634,-948.95,0.00038904,120]
[336511805,1724886312711,-500.0,0.00038904,120]
[336511806,1724886312787,-500.0,0.00038904,120]
[336511807,1724886312859,-500.0,0.00038904,120]
[336511808,1724886312934,-632.09,0.00038904,120]
[336511809,1724886313017,-500.0,0.00038904,120]
[336511810,1724886313094,-500.0,0.00038904,120]
[336511811,1724886313170,-500.0,0.00038904,120]
[336511812,1724886313243,-500.0,0.00038904,120]
[336511813,1724886313319,-445.22,0.00038904,120]
[336511814,1724886313394,-500.0,0.00038904,120]
[336511815,1724886313469,-634.80377063,0.00038904,120]
[336511816,1724886313546,-500.0,0.00038904,120]
[336511817,1724886313622,-500.0,0.00038904,120]
[336511818,1724886313695,-387.22925335,0.00038904,120]
[336511819,1724886313767,-1145.31,0.00038904,120]
[336511820,1724886314053,-1592.69,0.00038904,120]
[336511821,1724886314140,-515.43460946,0.00038904,120]
[336511822,1724886314217,-500.0,0.00038904,120]
[336511823,1724886314320,-500.0,0.00038904,120]
[336511824,1724886314403,-420.67,0.00038904,120]
[336511825,1724886314481,-500.0,0.00038904,120]
[336511826,1724886314556,-772.86,0.00038904,120]
[336511827,1724886314633,-500.0,0.00038904,120]
[336511828,1724886314708,-535.61,0.00038904,120]
[336511829,1724886314782,-500.63641269,0.00038904,120]
[336511830,1724886314859,-500.0,0.00038904,120]
[336511831,1724886314938,-500.0,0.00038904,120]
[336511832,1724886315014,-2098.61,0.00038904,120]
[336511833,1724886315086,-500.0,0.00038904,120]
[336511834,1724886315161,-1470.18,0.00038904,120]
[336511835,1724886315237,-509.22,0.00038904,120]
[336511836,1724886315314,-155.43,0.00038904,120]
[336511837,1724886315392,-500.0,0.00038904,120]
[336511838,1724886315470,-500.0,0.00038904,120]
[336511839,1724886315545,-500.0,0.00038904,120]
[336511840,1724886315620,-500.0,0.00038904,120]
[336511841,1724886315693,-500.0,0.00038904,120]
[336511842,1724886315764,-531.97,0.00038904,120]
[336511843,1724886315839,-500.0,0.00038904,120]
[336511844,1724886315917,-500.0,0.00038904,120]
[336511845,1724886315998,-500.0,0.00038904,120]
[336511846,1724886316077,-500.0,0.00038904,120]
[336511847,1724886316152,-1877.64,0.00038904,120]
[336511848,1724886316229,-500.0,0.00038904,120]
[336511849,1724886316306,-931.98,0.00038904,120]
[336511850,1724886316393,-1789.35,0.00038904,120]
[336511851,1724886316477,-500.0,0.00038904,120]
[336511852,1724886316554,-500.0,0.00038904,120]
[336511853,1724886316632,-631.54,0.00038904,120]
[336511854,1724886316709,-500.0,0.00038904,120]
[336511855,1724886316785,-2347.84,0.00038904,120]
[336511856,1724886316863,-500.0,0.00038904,120]
[336511857,1724886316944,-500.0,0.00038904,120]
[336511858,1724886317019,-500.0,0.00038904,120]
[336511859,1724886317093,-982.26,0.00038904,120]
[336511860,1724886317168,-500.0,0.00038904,120]
[336511861,1724886317248,-564.22,0.00038904,120]
[336511862,1724886317326,-254.58,0.00038904,120]
[336511863,1724886317409,-500.0,0.00038904,120]
[336511864,1724886317487,-801.34,0.00038904,120]
[336511865,1724886317570,-150.0,0.00038931,120]
[336511866,1724886317648,-2311.37,0.00039178,120]
[336511867,1724886317721,-2049.02,0.00039178,120]
[336511868,1724886317791,-500.0,0.00039178,120]
[336511869,1724886317883,-500.0,0.00039178,120]
[336511870,1724886317957,-680.33,0.00039178,120]
[336511871,1724886318033,-500.0,0.00039178,120]
[336511872,1724886318112,-500.0,0.00039178,120]
[336511873,1724886318189,-500.0,0.00039178,120]
[336511874,1724886318269,-1056.79,0.00039178,120]
[336511875,1724886318352,-262.95,0.00039178,120]
[336511876,1724886318431,-891.13,0.00039178,120]
[336511877,1724886318509,-500.0,0.00039178,120]
[336511878,1724886318583,-500.0,0.00039178,120]
[336511879,1724886318661,-500.0,0.00039178,120]
[336511880,1724886318737,-717.5,0.00039178,120]
[336511881,1724886318822,-500.0,0.00039178,120]
[336511882,1724886318906,-500.0,0.00039178,120]
[336511883,1724886318988,-500.0,0.00039178,120]
[336511884,1724886319072,-500.0,0.00039178,120]
[336511885,1724886319149,-251.11544649,0.00039178,120]
[336511886,1724886319226,-1181.13,0.00039178,120]
[336511887,1724886319302,-1579.19,0.00039178,120]
[336511888,1724886319383,-500.0,0.00039178,120]
[336511889,1724886319463,-920.35,0.00039178,120]
[336511890,1724886319542,-278.01449493,0.00039178,120]
[336511891,1724886319621,-1840.27,0.00039178,120]
[336511892,1724886319697,-500.0,0.00039178,120]
[336511893,1724886319770,-500.0,0.00039178,120]
[336511894,1724886319846,-654.82,0.00039178,120]
[336511895,1724886319923,-912.37,0.00039178,120]
[336511896,1724886319999,-500.0,0.00039178,120]
[336511897,1724886320072,-1104.37,0.00039178,120]
[336511898,1724886320148,-574.58170719,0.00039178,120]
[336511899,1724886320222,-500.0,0.00039178,120]
[336511900,1724886320295,-500.0,0.00039178,120]
[336511901,1724886320368,-631.76,0.00039178,120]
[336511902,1724886320442,-611.75,0.00039178,120]
[336511903,1724886320517,-500.0,0.00039178,120]
[336511904,1724886320587,-500.0,0.00039178,120]
[336511905,1724886320660,-500.0,0.00039178,120]
[336511906,1724886320752,-500.0,0.00039178,120]
[336511907,1724886320832,-500.0,0.00039178,120]
[336511908,1724886320926,-500.0,0.00039178,120]
[336511909,1724886321023,-500.0,0.00039178,120]
[336511910,1724886321106,-500.0,0.00039178,120]
[336511911,1724886321180,-1569.87,0.00039178,120]
[336511912,1724886321255,-500.0,0.00039178,120]
[336511913,1724886321339,-1273.26,0.00039178,120]
[336511914,1724886321416,-500.0,0.00039178,120]
[336511915,1724886321493,-654.11,0.00039178,120]
[336511916,1724886321571,-500.0,0.00039178,120]
[336511917,1724886321652,-2638.27,0.00039178,120]
[336511918,1724886321729,-500.0,0.00039178,120]
[336511919,1724886321804,-2108.19,0.00039178,120]
[336511920,1724886321882,-500.0,0.00039178,120]
[336511921,1724886321958,-500.0,0.00039178,120]
[336511922,1724886322033,-500.0,0.00039178,120]
[336511923,1724886322109,-500.0,0.00039178,120]
[336511924,1724886322408,-2142.25,0.00039178,120]
[336511925,1724886322488,-500.0,0.00039178,120]
[336511926,1724886322574,-2170.08,0.00039178,120]
[336511927,1724886322651,-500.0,0.00039178,120]
[336511928,1724886322728,-500.0,0.00039178,120]
[336511929,1724886322803,-500.0,0.00039178,120]
[336511930,1724886322884,-500.0,0.00039178,120]
[336511931,1724886322960,-500.0,0.00039178,120]
[336511932,1724886323035,-500.0,0.00039178,120]
[336511933,1724886323110,-739.6,0.00039178,120]
[336511934,1724886323187,-500.0,0.00039178,120]
[336511935,1724886323264,-302.31,0.00039178,120]
[336511936,1724886323346,-500.0,0.00039178,120]
[336511937,1724886323423,-1209.44,0.00039178,120]
[336511938,1724886323501,-500.0,0.00039178,120]
[336511939,1724886323581,-500.0,0.00039178,120]
[336511940,1724886323668,-500.0,0.00039178,120]
[336511941,1724886323749,-2783.34,0.00039178,120]
[336511942,1724886323822,-500.0,0.00039178,120]
[336511943,1724886323895,-500.0,0.00039178,120]
[336511944,1724886323969,-1174.49,0.00039178,120]
[336511945,1724886324046,-500.0,0.00039178,120]
[336511946,1724886324131,-500.0,0.00039178,120]
[336511947,1724886324214,-577.26,0.00039178,120]
[336511948,1724886324301,-1360.62,0.00039178,120]
[336511949,1724886324388,-614.02,0.00039178,120]
[336511950,1724886324473,-500.0,0.00039178,120]
[336511951,1724886324555,-500.0,0.00039178,120]
[336511952,1724886324641,-501.56803702,0.00039178,120]
[336511953,1724886324722,-789.5,0.00039178,120]
[336511954,1724886324804,-656.15,0.00039178,120]
[336511955,1724886324886,-500.0,0.00039178,120]
[336511956,1724886324966,-501.09292209,0.00039178,120]
[336511957,1724886325043,-445.17557703,0.00039178,120]
[336511958,1724886325121,-500.0,0.00039178,120]
[336511959,1724886325193,-599.62,0.00039178,120]
[336511960,1724886325276,-500.0,0.00039178,120]
[336511961,1724886325357,-500.0,0.00039178,120]
[336511962,1724886325436,-500.0,0.00039178,120]
[336511963,1724886325517,-309.5463261,0.00039178,120]
[336511964,1724886325593,-640.33,0.00039178,120]
[336511965,1724886325672,-500.0,0.00039178,120]
[336511966,1724886325746,-2026.94,0.00039178,120]
[336511967,1724886325821,-500.0,0.00039178,120]
[336511968,1724886325894,-1007.8,0.00039178,120]
[336511969,1724886325968,-3251.65,0.00039178,120]
[336511970,1724886326040,-979.48,0.00039178,120]
[336511971,1724886326112,-988.01,0.00039178,120]
[336511972,1724886326192,-703.62,0.00039178,120]
[336511973,1724886326267,-508.6978663,0.00039178,120]
[336511974,1724886326349,-537.33530015,0.00039178,120]
[336511975,1724886326426,-500.0,0.00039178,120]
[336511976,1724886326504,-551.69,0.00039178,120]
[336511977,1724886326579,-500.0,0.00039178,120]
[336511978,1724886326653,-500.0,0.00039178,120]
[336511979,1724886326729,-701.62,0.00039178,120]
[336511980,1724886326804,-477.81692416,0.00039178,120]
[336511981,1724886326879,-1022.1,0.00039178,120]
[336511982,1724886326957,-500.0,0.00039178,120]
[336511983,1724886327031,-1634.2,0.00039178,120]
[336511984,1724886327108,-896.96,0.00039178,120]
[336511985,1724886327188,-500.0,0.00039178,120]
[336511986,1724886327267,-500.0,0.00039178,120]
[336511987,1724886327348,-500.0,0.00039178,120]
[336511988,1724886327426,-225.01842061,0.00039178,120]
[336511989,1724886327503,-500.0,0.00039178,120]
[336511990,1724886327573,-500.0,0.00039178,120]
[336511991,1724886327643,-500.0,0.00039178,120]
[336511992,1724886327714,-500.0,0.00039178,120]
[336511993,1724886327786,-1182.11,0.00039178,120]
[336511994,1724886327857,-500.0,0.00039178,120]
[336511995,1724886327931,-500.0,0.00039178,120]
[336511996,1724886328008,-1294.95,0.00039178,120]
[336511997,1724886328089,-599.03,0.00039178,120]
[336511998,1724886328167,-500.0,0.00039178,120]
[336511999,1724886328241,-500.0,0.00039178,120]
[336512000,1724886328326,-500.0,0.00039178,120]
[336512001,1724886328424,-500.0,0.00039178,120]
[336512002,1724886328501,-500.0,0.00039178,120]
[336512003,1724886328575,-500.0,0.00039178,120]
[336512004,1724886328651,-500.0,0.00039178,120]
[336512005,1724886328725,-500.0,0.00039178,120]
[336512006,1724886328798,-500.0,0.00039178,120]
[336512007,1724886328873,-507.00343747,0.00039178,120]
[336512008,1724886328952,-843.11,0.00039178,120]
[336512009,1724886329027,-500.0,0.00039178,120]
[336512010,1724886329104,-500.0,0.00039178,120]
[336512011,1724886329182,-579.28,0.00039178,120]
[336512012,1724886329260,-500.0,0.00039178,120]
[336512013,1724886329335,-500.0,0.00039178,120]
[336512014,1724886329419,-725.36,0.00039178,120]
[336512015,1724886329493,-500.0,0.00039178,120]
[336512016,1724886329569,-510.45,0.00039178,120]
[336512017,1724886329646,-500.0,0.00039178,120]
[336512018,1724886329725,-500.0,0.00039178,120]
[336512019,1724886329802,-558.75,0.00039178,120]
[336512020,1724886329878,-576.92,0.00039178,120]
[336512021,1724886329953,-500.0,0.00039178,120]
[336512022,1724886330024,-500.0,0.00039178,120]
[336512023,1724886330097,-500.0,0.00039178,120]
[336512024,1724886330171,-500.0,0.00039178,120]
[336512025,1724886330249,-500.0,0.00039178,120]
[336512026,1724886330349,-948.95,0.00039178,120]
[336512027,1724886330432,-333.61080867,0.00039178,120]
[336512028,1724886330715,-500.0,0.00039178,120]
[336512029,1724886330788,-632.09,0.00039178,120]
[336512030,1724886330864,-500.0,0.00039178,120]
[336512031,1724886330943,-258.92,0.00039178,120]
[336512032,1724886331019,-500.0,0.00039178,120]
[336512033,1724886331102,-500.0,0.00039178,120]
[336512034,1724886331176,-500.0,0.00039178,120]
[336512035,1724886331250,-500.0,0.00039178,120]
[336512036,1724886331329,-391.51,0.00039178,120]
[336512037,1724886331417,-1145.31,0.00039178,120]
[336512038,1724886331492,-500.0,0.00039178,120]
[336512039,1724886331571,-500.0,0.00039178,120]
[336512040,1724886331649,-500.0,0.00039178,120]
[336512041,1724886331727,-772.86,0.00039178,120]
[336512042,1724886331808,-500.0,0.00039178,120]
[336512043,1724886331885,-535.61,0.00039178,120]
[336512044,1724886331962,-500.0,0.00039178,120]
[336512045,1724886332037,-500.0,0.00039178,120]
[336512046,1724886332121,-2098.61,0.00039178,120]
[336512047,1724886332194,-500.0,0.00039178,120]
[336512048,1724886332264,-1470.18,0.00039178,120]
[336512049,1724886332336,-509.22,0.00039178,120]
[336512050,1724886332412,-500.0,0.00039178,120]
[336512051,1724886332488,-500.0,0.00039178,120]
[336512052,1724886332561,-500.0,0.00039178,120]
[336512053,1724886332634,-500.0,0.00039178,120]
[336512054,1724886332708,-500.0,0.00039178,120]
[336512055,1724886332796,-531.97,0.00039178,120]
[336512056,1724886332869,-500.0,0.00039178,120]
[336512057,1724886332906,-427.55,0.00039178,120]
[336512058,1724886332944,-500.0,0.00039178,120]
[336512059,1724886332980,-500.0,0.00039178,120]
[336512060,1724886333014,-500.0,0.00039178,120]
[336512061,1724886333050,-1877.64,0.00039178,120]
[336512062,1724886333085,-931.98,0.00039178,120]
[336512063,1724886333122,-1789.35,0.00039178,120]
[336512064,1724886333158,-500.0,0.00039178,120]
[336512065,1724886333195,-500.0,0.00039178,120]
[336512066,1724886333233,-631.54,0.00039178,120]
[336512067,1724886333270,-2347.84,0.00039178,120]
[336512068,1724886333309,-500.0,0.00039178,120]
[336512069,1724886333348,-500.0,0.00039178,120]
[336512070,1724886333386,-500.0,0.00039178,120]
[336512071,1724886333422,-500.0,0.00039178,120]
[336512072,1724886333459,-982.26,0.00039178,120]
[336512073,1724886333496,-564.22,0.00039178,120]
[336512074,1724886333532,-500.0,0.00039178,120]
[336512075,1724886333567,-500.0,0.00039178,120]
[336512076,1724886333603,-801.34,0.00039178,120]
[336512077,1724886333641,-150.0,0.00039427,120]
[336512078,1724886333677,-607.05081372,0.00039452,120]
[336512079,1724886333711,-528.84066601,0.00039452,120]
[336512080,1724886333745,-1201.5,0.00039452,120]
[336512081,1724886333778,-1369.79,0.00039452,120]
[336512082,1724886333810,-500.0,0.00039452,120]
[336512083,1724886333844,-500.0,0.00039452,120]
[336512084,1724886333876,-500.0,0.00039452,120]
[336512085,1724886333910,-1370.96,0.00039452,120]
[336512086,1724886333947,-500.0,0.00039452,120]
[336512087,1724886333979,-1208.19,0.00039452,120]
[336512088,1724886334013,-500.0,0.00039452,120]
[336512089,1724886334047,-500.0,0.00039452,120]
[336512090,1724886334088,-916.66,0.00039452,120]
[336512091,1724886334128,-1754.5,0.00039452,120]
[336512092,1724886334166,-500.0,0.00039452,120]
[336512093,1724886334204,-500.0,0.00039452,120]
[336512094,1724886334240,-500.0,0.00039452,120]
[336512095,1724886334282,-500.0,0.00039452,120]
[336512096,1724886334324,-500.0,0.00039452,120]
[336512097,1724886334365,-732.18,0.00039452,120]
[336512098,1724886334405,-500.0,0.00039452,120]
[336512099,1724886334444,-552.05011542,0.00039452,120]
[336512100,1724886334481,-500.0,0.00039452,120]
[336512101,1724886334516,-1459.18,0.00039452,120]
[336512102,1724886334551,-926.61,0.00039452,120]
[336512103,1724886334585,-583.51,0.00039452,120]
[336512104,1724886334620,-703.97,0.00039452,120]
[336512105,1724886334655,-652.83,0.00039452,120]
[336512106,1724886334689,-727.0,0.00039452,120]
[336512107,1724886334723,-500.0,0.00039452,120]
[336512108,1724886334758,-500.0,0.00039452,120]
[336512109,1724886334793,-168.32111279,0.00039452,120]
[336512110,1724886334833,-500.0,0.00039452,120]
[336512111,1724886334873,-1064.54,0.00039452,120]
[336512112,1724886334907,-500.0,0.00039452,120]
[336512113,1724886334946,-500.0,0.00039452,120]
[336512114,1724886334985,-500.0,0.00039452,120]
[336512115,1724886335025,-500.0,0.00039452,120]
[336512116,1724886335064,-578.43,0.00039452,120]
[336512117,1724886335100,-1779.79,0.00039452,120]
[336512118,1724886335134,-500.0,0.00039452,120]
[336512119,1724886335169,-500.0,0.00039452,120]
[336512120,1724886335202,-1416.66,0.00039452,120]
[336512121,1724886335238,-3210.07,0.00039452,120]
[336512122,1724886335276,-500.0,0.00039452,120]
[336512123,1724886335311,-683.48,0.00039452,120]
[336512124,1724886335345,-1426.45,0.00039452,120]
[336512125,1724886335379,-953.05,0.00039452,120]
[336512126,1724886335421,-1953.57,0.00039452,120]
[336512127,1724886335456,-500.0,0.00039452,120]
[336512128,1724886335494,-500.0,0.00039452,120]
[336512129,1724886335533,-521.17,0.00039452,120]
[336512130,1724886335570,-500.0,0.00039452,120]
[336512131,1724886335608,-500.0,0.00039452,120]
[336512132,1724886335840,-500.0,0.00039452,120]
[336512133,1724886335885,-2061.37,0.00039452,120]
[336512134,1724886335923,-500.0,0.00039452,120]
[336512135,1724886335961,-1334.57,0.00039452,120]
[336512136,1724886335997,-746.59,0.00039452,120]
[336512137,1724886336038,-663.07,0.00039452,120]
[336512138,1724886336078,-500.0,0.00039452,120]
[336512139,1724886336115,-500.0,0.00039452,120]
[336512140,1724886336155,-508.18323566,0.00039452,120]
[336512141,1724886336192,-1030.68,0.00039452,120]
[336512142,1724886336230,-500.0,0.00039452,120]
[336512143,1724886336267,-910.03,0.00039452,120]
[336512144,1724886336307,-500.0,0.00039452,120]
[336512145,1724886336346,-3077.64,0.00039452,120]
[336512146,1724886336389,-602.48,0.00039452,120]
[336512147,1724886336431,-380.21917335,0.00039452,120]
[336512148,1724886336467,-2165.38,0.00039452,120]
[336512149,1724886336505,-500.0,0.00039452,120]
[336512150,1724886336542,-585.27,0.00039452,120]
[336512151,1724886336583,-500.0,0.00039452,120]
[336512152,1724886336618,-2823.61,0.00039452,120]
[336512153,1724886336654,-500.0,0.00039452,120]
[336512154,1724886336690,-500.0,0.00039452,120]
[336512155,1724886336725,-500.0,0.00039452,120]
[336512156,1724886336767,-548.35,0.00039452,120]
[336512157,1724886336810,-529.15,0.00039452,120]
[336512158,1724886336847,-500.0,0.00039452,120]
[336512159,1724886336883,-548.13,0.00039452,120]
[336512160,1724886336925,-500.0,0.00039452,120]
[336512161,1724886336967,-500.0,0.00039452,120]
[336512162,1724886337007,-2554.35,0.00039452,120]
[336512163,1724886337049,-500.0,0.00039452,120]
[336512164,1724886337086,-500.0,0.00039452,120]
[336512165,1724886337122,-500.0,0.00039452,120]
[336512166,1724886337158,-500.0,0.00039452,120]
[336512167,1724886337195,-699.03,0.00039452,120]
[336512168,1724886337232,-676.5,0.00039452,120]
[336512169,1724886337269,-500.0,0.00039452,120]
[336512170,1724886337305,-500.0,0.00039452,120]
[336512171,1724886337344,-535.76,0.00039452,120]
[336512172,1724886337379,-1000.0,0.00039452,120]
[336512173,1724886337415,-631.35951812,0.00039452,120]
[336512174,1724886337450,-1865.1,0.00039452,120]
[336512175,1724886337485,-541.75,0.00039452,120]
[336512176,1724886337521,-1770.24,0.00039452,120]
[336512177,1724886337556,-901.56,0.00039452,120]
[336512178,1724886337589,-500.0,0.00039452,120]
[336512179,1724886337622,-547.68,0.00039452,120]
[336512180,1724886337657,-2488.01,0.00039452,120]
[336512181,1724886337692,-710.96,0.00039452,120]
[336512182,1724886337725,-813.62,0.00039452,120]
[336512183,1724886337760,-508.67,0.00039452,120]
[336512184,1724886337792,-506.14,0.00039452,120]
[336512185,1724886337833,-612.27,0.00039452,120]
[336512186,1724886337869,-500.0,0.00039452,120]
[336512187,1724886337904,-1209.2,0.00039452,120]
[336512188,1724886337938,-2839.49,0.00039452,120]
[336512189,1724886337972,-814.07,0.00039452,120]
[336512190,1724886338008,-1273.71,0.00039452,120]
[336512191,1724886338046,-371.92557109,0.00039452,120]
[336512192,1724886338083,-500.0,0.00039452,120]
[336512193,1724886338119,-811.97,0.00039452,120]
[336512194,1724886338153,-500.0,0.00039452,120]
[336512195,1724886338187,-682.27,0.00039452,120]
[336512196,1724886338221,-1909.1,0.00039452,120]
[336512197,1724886338254,-500.0,0.00039452,120]
[336512198,1724886338288,-2426.11,0.00039452,120]
[336512199,1724886338323,-707.93,0.00039452,120]
[336512200,1724886338360,-500.0,0.00039452,120]
[336512201,1724886338395,-2151.08,0.00039452,120]
[336512202,1724886338431,-282.1,0.00039452,120]
[336512203,1724886338464,-500.0,0.00039452,120]
[336512204,1724886338501,-500.0,0.00039452,120]
[336512205,1724886338533,-500.0,0.00039452,120]
[336512206,1724886338572,-500.0,0.00039452,120]
[336512207,1724886338605,-2325.23,0.00039452,120]
[336512208,1724886338640,-500.0,0.00039452,120]
[336512209,1724886338677,-562.28114955,0.00039452,120]
[336512210,1724886338712,-1035.67,0.00039452,120]
[336512211,1724886338746,-2220.57,0.00039452,120]
[336512212,1724886338782,-640.96,0.00039452,120]
[336512213,1724886338818,-500.0,0.00039452,120]
[336512214,1724886338852,-2244.32,0.00039452,120]
[336512215,1724886338887,-1185.69,0.00039452,120]
[336512216,1724886338923,-199.012895,0.00039452,120]
[336512217,1724886338957,-500.0,0.00039452,120]
[336512218,1724886338992,-2762.82,0.00039452,120]
[336512219,1724886339025,-500.0,0.00039452,120]
[336512220,1724886339062,-584.41,0.00039452,120]
[336512221,1724886339098,-500.0,0.00039452,120]
[336512222,1724886339133,-500.0,0.00039452,120]
[336512223,1724886339169,-540.348069,0.00039452,120]
[336512224,1724886339206,-1232.71,0.00039452,120]
[336512225,1724886339242,-500.0,0.00039452,120]
[336512226,1724886339279,-500.0,0.00039452,120]
[336512227,1724886339316,-500.0,0.00039452,120]
[336512228,1724886339352,-1272.91,0.00039452,120]
[336512229,1724886339388,-2282.89,0.00039452,120]
[336512230,1724886339426,-1820.05,0.00039452,120]
[336512231,1724886339462,-500.0,0.00039452,120]
[336512232,1724886339497,-500.0,0.00039452,120]
[336512233,1724886339533,-917.99,0.00039452,120]
[336512234,1724886339568,-500.0,0.00039452,120]
[336512235,1724886339603,-500.0,0.00039452,120]
[336512236,1724886339638,-737.43,0.00039452,120]
[336512237,1724886339895,-500.0,0.00039452,120]
[336512238,1724886339931,-564.42,0.00039452,120]
[336512239,1724886339966,-600.0,0.00039452,120]
[336512240,1724886340003,-1191.43,0.00039452,120]
[336512241,1724886340040,-519.7,0.00039452,120]
[336512242,1724886340080,-500.0,0.00039452,120]
[336512243,1724886340124,-575.39,0.00039452,120]
[336512244,1724886340163,-500.0,0.00039452,120]
[336512245,1724886340202,-1409.4,0.00039452,120]
[336512246,1724886340240,-1002.53,0.00039452,120]
[336512247,1724886340276,-500.0,0.00039452,120]
[336512248,1724886340312,-500.0,0.00039452,120]
[336512249,1724886340351,-500.0,0.00039452,120]
[336512250,1724886340388,-2535.4,0.00039452,120]
[336512251,1724886340426,-675.22,0.00039452,120]
[336512252,1724886340463,-575.42,0.00039452,120]
[336512253,1724886340499,-500.0,0.00039452,120]
[336512254,1724886340535,-584.86,0.00039452,120]
[336512255,1724886340570,-1344.22,0.00039452,120]